bitfinex/quotes_BTCUSD_20250527
["timestamp","ask_amount","ask_price","bid_price","bid_amount"]
[1748364403356,0.4069548,110370.0,110360.0,0.29961037]
[1748364403809,0.07405395,110370.0,110360.0,0.29961037]
[1748364404221,0.07405395,110370.0,110360.0,0.31691037]
[1748364404436,0.07632974,110370.0,110360.0,0.31691037]
[1748364404664,0.2575384,110370.0,110360.0,0.33351037]
[1748364404871,0.18120866,110370.0,110360.0,0.33351037]
[1748364405323,0.18120866,110370.0,110360.0,0.67351037]
[1748364406385,0.18120866,110370.0,110360.0,1.07351037]
[1748364407265,0.18120866,110370.0,110360.0,1.07451037]
[1748364410212,0.16420866,110370.0,110360.0,1.07451037]
[1748364412755,0.16420866,110370.0,110360.0,1.04061037]
[1748364414480,0.18358445,110370.0,110360.0,1.04061037]
[1748364414685,0.2914384,110370.0,110360.0,1.04061037]
[1748364414916,0.28916261,110370.0,110360.0,1.04061037]
[1748364416432,0.28916261,110370.0,110360.0,0.64061037]
[1748364416673,0.28916261,110370.0,110360.0,0.30061037]
[1748364416905,0.28916261,110370.0,110360.0,0.70061037]
[1748364417350,0.27216261,110370.0,110360.0,0.70061037]
[1748364419718,0.23826261,110370.0,110360.0,0.70061037]
[1748364419940,0.23826261,110370.0,110360.0,0.30061037]
[1748364420378,0.23826261,110370.0,110360.0,0.70061037]
[1748364421945,0.27316261,110370.0,110360.0,0.70061037]
[1748364423868,0.23826261,110370.0,110360.0,0.70061037]
[1748364424076,0.14720866,110370.0,110360.0,1.28270461]
[1748364424532,0.13020866,110370.0,110360.0,1.28270461]
[1748364426067,0.13248445,110370.0,110360.0,1.28270461]
[1748364426523,0.13248445,110370.0,110360.0,0.73601037]
[1748364427173,0.13020866,110370.0,110360.0,1.07601037]
[1748364427599,0.13248445,110370.0,110360.0,1.07601037]
[1748364428708,0.13020866,110370.0,110360.0,1.07601037]
[1748364430944,0.13020866,110370.0,110360.0,1.04061037]
[1748364431588,0.11320866,110370.0,110360.0,1.04061037]
[1748364433363,0.14908445,110370.0,110360.0,1.04061037]
[1748364433613,0.14908445,110370.0,110360.0,0.64061037]
[1748364435006,0.11320866,110370.0,110360.0,0.64061037]
[1748364435214,0.11548445,110370.0,110360.0,0.64061037]
[1748364436083,0.13288445,110370.0,110360.0,0.64061037]
[1748364436320,0.14998445,110370.0,110360.0,0.64061037]
[1748364436534,0.2410384,110370.0,110360.0,0.64061037]
[1748364436749,0.23876261,110370.0,110360.0,0.64061037]
[1748364437737,0.23876261,110370.0,110360.0,1.04061037]
[1748364438749,0.23876261,110370.0,110360.0,0.84561823]
[1748364439196,0.22176261,110370.0,110360.0,0.84561823]
[1748364440172,0.09620866,110370.0,110360.0,0.84561823]
[1748364441782,0.09620866,110370.0,110360.0,1.42721247]
[1748364442812,0.09620866,110370.0,110360.0,1.60843755]
[1748364443038,0.09620866,110370.0,110360.0,1.42721247]
[1748364443995,0.09620866,110370.0,110360.0,0.98159424]
[1748364445143,0.09620866,110370.0,110360.0,0.94669424]
[1748364446078,0.09620866,110370.0,110360.0,0.4]
[1748364446293,0.07920866,110370.0,110360.0,0.4]
[1748364446547,0.07920866,110370.0,110360.0,0.94669424]
[1748364447475,0.19028633,110360.0,110350.0,1.70355936]
[1748364447712,0.19028633,110360.0,110350.0,3.07603936]
[1748364447935,0.19028633,110360.0,110350.0,2.97002036]
[1748364448162,0.19028633,110360.0,110350.0,2.81242137]
[1748364448384,0.19028633,110360.0,110350.0,3.21242137]
[1748364448818,0.19028633,110360.0,110350.0,3.27242137]
[1748364449249,0.19028633,110360.0,110350.0,3.26362337]
[1748364449464,0.19028633,110360.0,110350.0,2.97236174]
[1748364449678,0.19028633,110360.0,110350.0,2.70440924]
[1748364449885,0.19028633,110360.0,110350.0,2.66460924]
[1748364450094,0.19028633,110360.0,110350.0,2.85491281]
[1748364450327,0.19028633,110360.0,110350.0,2.67367131]
[1748364450536,0.19028633,110360.0,110350.0,2.85491273]
[1748364451196,0.20748633,110360.0,110350.0,1.13238]
[1748364451430,0.19028633,110360.0,110350.0,1.13238]
[1748364451649,0.19028633,110360.0,110350.0,1.58999424]
[1748364451894,0.19028633,110360.0,110350.0,1.67899424]
[1748364452116,0.19028633,110360.0,110350.0,1.03969424]
[1748364452582,0.19028633,110360.0,110350.0,0.63969424]
[1748364453038,0.19028633,110360.0,110350.0,1.24659781]
[1748364453258,0.18234733,110360.0,110350.0,2.4088028]
[1748364453491,0.19140858,110360.0,110350.0,2.41786471]
[1748364453997,0.00906076,110360.0,110350.0,2.52704149]
[1748364454186,0.04530436,110360.0,110350.0,2.52704149]
[1748364454396,0.22652944,110360.0,110350.0,2.52704149]
[1748364454611,0.21746942,110360.0,110350.0,2.50891841]
[1748364454841,0.03624434,110360.0,110350.0,2.52704157]
[1748364455059,0.21746942,110360.0,110350.0,2.52704157]
[1748364456418,0.20840817,110360.0,110350.0,3.38294857]
[1748364456649,0.21746942,110360.0,110350.0,3.38294857]
[1748364457178,0.21746942,110360.0,110350.0,3.37388707]
[1748364457391,0.21746942,110360.0,110350.0,3.56179907]
[1748364457589,0.21746942,110360.0,110350.0,3.43191207]
[1748364458047,0.04494038,110380.0,110360.0,0.2516686]
[1748364458277,0.04494038,110380.0,110370.0,3.32937474]
[1748364458278,0.05399933,110380.0,110370.0,3.32937474]
[1748364458495,0.06305828,110380.0,110370.0,4.07415869]
[1748364458707,0.07211748,110380.0,110370.0,4.69235115]
[1748364458929,0.07211748,110380.0,110370.0,4.62476491]
[1748364459163,0.07211748,110380.0,110370.0,4.69763415]
[1748364459375,0.08117676,110380.0,110370.0,5.75307715]
[1748364459590,0.08079944,110380.0,110370.0,5.51590015]
[1748364459805,0.07174016,110380.0,110370.0,6.28201115]
[1748364460022,0.07174016,110380.0,110370.0,1.70989715]
[1748364460268,0.05474016,110380.0,110370.0,6.10363315]
[1748364460486,0.05474016,110380.0,110370.0,4.94724415]
[1748364460698,0.0637996,110380.0,110370.0,4.71306815]
[1748364460917,0.06379952,110380.0,110370.0,4.64972715]
[1748364461403,0.05474016,110380.0,110370.0,4.64972715]
[1748364461699,0.06379952,110380.0,110370.0,4.64972715]
[1748364461926,0.05474016,110380.0,110370.0,5.18114915]
[1748364462127,0.06379952,110380.0,110370.0,5.18114915]
[1748364462799,0.25405129,110380.0,110370.0,3.7995843]
[1748364463074,0.22687419,110380.0,110370.0,2.50625234]
[1748364463336,0.22687419,110380.0,110370.0,3.04387439]
[1748364463562,0.22687419,110380.0,110370.0,3.05293424]
[1748364464023,0.22687419,110380.0,110370.0,4.03987124]
[1748364464227,0.22687419,110380.0,110370.0,3.87706139]
[1748364464445,0.22687419,110380.0,110370.0,2.828742]
[1748364464661,0.22687419,110380.0,110370.0,2.84686245]
[1748364464894,0.22687419,110380.0,110370.0,3.22896239]
[1748364465121,0.22687419,110380.0,110370.0,3.42205345]
[1748364465367,0.22687419,110380.0,110370.0,3.26632563]
[1748364465830,0.22687419,110380.0,110370.0,3.25726561]
[1748364466056,0.22687419,110380.0,110370.0,3.70438363]
[1748364466293,0.22687419,110380.0,110370.0,3.32811861]
[1748364466516,0.22687419,110380.0,110370.0,3.33717863]
[1748364466973,0.22687419,110380.0,110370.0,3.34623873]
[1748364467203,0.22687419,110380.0,110370.0,3.73898067]
[1748364467437,0.20987419,110380.0,110370.0,3.73898067]
[1748364467881,0.03774156,110380.0,110370.0,3.73898017]
[1748364468131,0.03774156,110380.0,110370.0,2.01411917]
[1748364468379,0.03774156,110380.0,110370.0,4.02735417]
[1748364469124,0.03774024,110380.0,110370.0,4.06115417]
[1748364469378,0.03774024,110380.0,110370.0,5.58387917]
[1748364469885,0.01056306,110380.0,110370.0,5.87318817]
[1748364470405,0.01056306,110380.0,110370.0,5.75412317]
[1748364470685,0.21771273,110420.0,110380.0,0.75506432]
[1748364470946,0.18117546,110400.0,110390.0,1.22859557]
[1748364471206,0.18117546,110400.0,110390.0,0.94233124]
[1748364471743,0.18117546,110400.0,110390.0,1.12350707]
[1748364471996,0.1902173,110400.0,110390.0,1.14162423]
[1748364472248,0.20027494,110400.0,110390.0,1.14162431]
[1748364472513,0.20933233,110400.0,110390.0,1.13256577]
[1748364472761,0.20933233,110400.0,110390.0,1.14162439]
[1748364473023,0.21133233,110400.0,110390.0,1.14162439]
[1748364473276,0.1902173,110400.0,110390.0,1.13256562]
[1748364473523,0.19927494,110400.0,110390.0,1.17622416]
[1748364473770,0.20833291,110400.0,110390.0,1.18528254]
[1748364474021,0.20833291,110400.0,110390.0,1.14162424]
[1748364474371,0.01811503,110400.0,110390.0,1.59434091]
[1748364474417,0.0090578,110400.0,110390.0,1.59434091]
[1748364474783,0.20833283,110400.0,110390.0,1.59434108]
[1748364474970,0.21739022,110400.0,110390.0,1.57622424]
[1748364475187,0.21739022,110400.0,110390.0,1.87826124]
[1748364475596,0.19927197,110410.0,110400.0,0.19021739]
[1748364475795,0.19927197,110410.0,110400.0,0.55566071]
[1748364476226,0.19927197,110410.0,110400.0,0.00896647]
[1748364476439,0.19927197,110410.0,110400.0,0.4]
[1748364477479,0.03692517,110430.0,110400.0,0.4]
[1748364477723,0.1811266,110420.0,110410.0,0.61892]
[1748364478423,0.18340239,110420.0,110410.0,0.61892]
[1748364478700,0.19795681,110420.0,110410.0,0.61892]
[1748364478943,0.19795681,110420.0,110410.0,1.63666324]
[1748364479181,0.19795681,110420.0,110410.0,1.09902615]
[1748364479403,0.19795681,110420.0,110410.0,1.042591]
[1748364479404,0.18890089,110420.0,110410.0,1.042591]
[1748364479617,0.18890089,110420.0,110410.0,0.91822]
[1748364480081,0.1811266,110420.0,110410.0,1.09936301]
[1748364480301,0.1811266,110420.0,110410.0,1.10842016]
[1748364480777,0.1811266,110420.0,110410.0,1.11747722]
[1748364481226,0.1811266,110420.0,110410.0,1.51747722]
[1748364481465,0.1811266,110420.0,110410.0,1.5265342]
[1748364481711,0.1811266,110420.0,110410.0,1.5355911]
[1748364481914,0.1811266,110420.0,110410.0,2.10088534]
[1748364482851,0.21805792,110430.0,110410.0,2.10994199]
[1748364483086,0.0181124,110420.0,110410.0,2.10994216]
[1748364483301,0.20829492,110420.0,110410.0,2.10994166]
[1748364483530,0.20829492,110420.0,110410.0,2.12774166]
[1748364484430,0.1992208,110430.0,110420.0,0.53923884]
[1748364484705,0.20827631,110430.0,110420.0,1.10453324]
[1748364484951,0.19922113,110430.0,110420.0,0.88669424]
[1748364485155,0.19922113,110430.0,110420.0,0.89575057]
[1748364485369,0.19922113,110430.0,110420.0,1.48593333]
[1748364485862,0.19922113,110430.0,110420.0,1.52273333]
[1748364486086,0.18120428,110440.0,110430.0,0.34]
[1748364486579,0.54669424,110470.0,110430.0,0.3771]
[1748364486859,0.18112127,110440.0,110430.0,0.74]
[1748364487034,0.18112127,110440.0,110430.0,1.02592]
[1748364488521,0.18112127,110440.0,110430.0,0.74]
[1748364488730,0.18112127,110440.0,110430.0,1.02576]
[1748364489877,0.27216221,110460.0,110430.0,0.74]
[1748364489878,0.63774819,110460.0,110430.0,0.74]
[1748364490107,0.18112127,110440.0,110430.0,1.02574778]
[1748364491043,0.18112127,110440.0,110430.0,1.02562778]
[1748364491508,0.18112127,110440.0,110430.0,1.02578778]
[1748364491777,0.18112127,110440.0,110430.0,0.00014778]
[1748364491778,0.81886946,110440.0,110430.0,0.00014778]
[1748364491967,1.10446946,110440.0,110430.0,0.00014778]
[1748364492233,1.11901031,110440.0,110430.0,0.00014778]
[1748364492458,0.5814641,110440.0,110430.0,0.00014778]
[1748364492667,0.63774819,110440.0,110430.0,0.00014778]
[1748364492888,0.84846946,110440.0,110430.0,0.00014778]
[1748364493783,0.85753174,110440.0,110430.0,0.00014778]
[1748364493991,0.63774819,110440.0,110430.0,0.00014778]
[1748364494207,0.81886946,110440.0,110430.0,0.00014778]
[1748364494632,0.83341031,110440.0,110430.0,0.00014778]
[1748364494840,1.17341031,110440.0,110430.0,0.00014778]
[1748364495052,1.72010455,110440.0,110430.0,0.00014778]
[1748364495471,1.17341031,110440.0,110430.0,0.00014778]
[1748364496403,1.76887909,110440.0,110430.0,0.00014778]
[1748364496905,1.17341031,110440.0,110430.0,0.00014778]
[1748364497555,1.54897031,110440.0,110430.0,0.00014778]
[1748364497823,1.5578443,110440.0,110430.0,0.00014778]
[1748364498074,0.63559006,110440.0,110430.0,0.00014778]
[1748364498301,0.72555006,110440.0,110430.0,0.00014778]
[1748364498547,0.73400182,110440.0,110430.0,0.00014778]
[1748364499021,0.75280182,110440.0,110430.0,0.00014778]
[1748364499452,0.78860146,110440.0,110430.0,0.00014778]
[1748364499664,0.19019991,110410.0,110400.0,0.73589146]
[1748364499992,0.19925689,110410.0,110400.0,0.10915395]
[1748364500211,0.19925689,110410.0,110400.0,0.0181]
[1748364500877,0.19925689,110410.0,110400.0,0.13555395]
[1748364500878,0.19019999,110410.0,110400.0,0.13555395]
[1748364501168,0.19019999,110410.0,110400.0,0.13855395]
[1748364502066,0.19019999,110410.0,110400.0,0.14155395]
[1748364502308,0.19019999,110410.0,110400.0,0.13855395]
[1748364502721,0.18225689,110410.0,110400.0,0.13855395]
[1748364502957,0.18225689,110410.0,110400.0,0.69430616]
[1748364503185,0.18225689,110410.0,110400.0,0.87546558]
[1748364503661,0.18225689,110410.0,110400.0,0.88152346]
[1748364504147,0.27108492,110430.0,110400.0,0.89058126]
[1748364504377,0.08996,110430.0,110410.0,0.13705395]
[1748364504608,0.1811266,110420.0,110410.0,0.13705395]
[1748364506130,0.1811266,110420.0,110410.0,0.32725411]
[1748364506325,0.1811266,110420.0,110410.0,0.32845411]
[1748364506326,0.20023884,110420.0,110410.0,0.32845411]
[1748364506549,0.20023884,110420.0,110410.0,0.34656815]
[1748364506749,0.20929451,110420.0,110410.0,0.35562497]
[1748364506959,0.02816783,110420.0,110410.0,0.35562497]
[1748364507175,0.02816783,110420.0,110410.0,0.36468162]
[1748364507387,0.01911142,110420.0,110410.0,1.20825528]
[1748364507628,0.02816742,110420.0,110410.0,1.20825528]
[1748364507846,0.01911142,110420.0,110410.0,1.20825528]
[1748364508066,0.0372235,110420.0,110410.0,1.06156104]
[1748364508286,0.0362235,110420.0,110410.0,1.60825528]
[1748364508498,0.2173501,110420.0,110410.0,1.04344774]
[1748364508723,0.199239,110420.0,110410.0,0.53825395]
[1748364508957,0.199239,110420.0,110410.0,0.82525395]
[1748364509381,0.199239,110420.0,110410.0,1.00639696]
[1748364509599,0.199239,110420.0,110410.0,1.01545394]
[1748364509812,0.182239,110420.0,110410.0,1.01545394]
[1748364510028,0.19129516,110420.0,110410.0,1.01545394]
[1748364510253,0.20829501,110420.0,110410.0,1.58026173]
[1748364510892,0.20829501,110420.0,110410.0,1.03356749]
[1748364511111,0.20829501,110420.0,110410.0,1.03356766]
[1748364511323,0.19016562,110430.0,110420.0,0.19923884]
[1748364511563,0.1992208,110430.0,110420.0,0.34299279]
[1748364511772,0.1992208,110430.0,110420.0,0.35204862]
[1748364511990,0.1992208,110430.0,110420.0,0.33393679]
[1748364512207,0.1992208,110430.0,110420.0,0.35204903]
[1748364512434,0.1992208,110430.0,110420.0,0.76110503]
[1748364514030,0.1992208,110430.0,110420.0,0.77016086]
[1748364514238,0.20827631,110430.0,110420.0,0.77016095]
[1748364514443,0.20827631,110430.0,110420.0,0.75204903]
[1748364515548,0.20827631,110430.0,110420.0,0.34299295]
[1748364515968,0.20827631,110430.0,110420.0,0.75204903]
[1748364516193,0.19922113,110430.0,110420.0,0.75204903]
[1748364517466,0.19922113,110430.0,110420.0,0.76110495]
[1748364518100,0.19922113,110430.0,110420.0,0.75204903]
[1748364519016,0.19922113,110430.0,110420.0,0.35204903]
[1748364519242,0.19922113,110430.0,110420.0,0.36110503]
[1748364519469,0.19922113,110430.0,110420.0,0.73393679]
[1748364519921,0.19016571,110430.0,110420.0,0.54375395]
[1748364520131,0.1811102,110430.0,110420.0,0.83647395]
[1748364520846,0.1811102,110430.0,110420.0,0.09105395]
[1748364521050,0.19018276,110420.0,110410.0,0.0542]
[1748364521269,0.19018276,110420.0,110410.0,0.81107395]
[1748364521716,0.19018276,110420.0,110410.0,1.17917395]
[1748364521922,0.19018276,110420.0,110410.0,0.77917395]
[1748364522137,0.19018276,110420.0,110410.0,0.96031696]
[1748364522365,0.19018276,110420.0,110410.0,1.36031696]
[1748364522573,0.19018276,110420.0,110410.0,1.36231696]
[1748364522845,0.19923884,110420.0,110410.0,0.66959696]
[1748364523059,0.19018276,110420.0,110410.0,0.96571696]
[1748364523271,0.19018276,110420.0,110410.0,1.37477402]
[1748364523512,0.19018276,110420.0,110410.0,1.36571696]
[1748364523513,0.1811266,110420.0,110410.0,1.36571696]
[1748364523739,0.1811266,110420.0,110410.0,1.37477411]
[1748364523965,0.1811266,110420.0,110410.0,0.97477411]
[1748364524201,0.1811102,110430.0,110420.0,0.2353266]
[1748364524407,0.19016562,110430.0,110420.0,0.34449295]
[1748364524624,0.19016562,110430.0,110420.0,0.33543679]
[1748364524830,0.19016562,110430.0,110420.0,0.14525395]
[1748364525271,0.19016562,110430.0,110420.0,0.54525395]
[1748364526673,0.18692562,110430.0,110420.0,0.54525395]
[1748364528271,0.18692562,110430.0,110420.0,0.14525395]
[1748364528740,0.18692562,110430.0,110420.0,0.54525395]
[1748364530095,0.18692562,110430.0,110420.0,0.83893395]
[1748364530322,0.18692562,110430.0,110420.0,0.51885395]
[1748364530583,0.18692562,110430.0,110420.0,0.49105395]
[1748364530805,0.18692562,110430.0,110420.0,0.09105395]
[1748364531031,0.19018276,110420.0,110410.0,0.3987]
[1748364531257,0.19018276,110420.0,110410.0,0.78323395]
[1748364531668,0.19018276,110420.0,110410.0,0.97343411]
[1748364531906,0.19018276,110420.0,110410.0,0.98249109]
[1748364532041,0.19018276,110420.0,110410.0,1.38249109]
[1748364532250,0.19018276,110420.0,110410.0,1.38449109]
[1748364532667,0.1811266,110420.0,110410.0,1.73392819]
[1748364533239,0.1811266,110420.0,110410.0,1.9150712]
[1748364533463,0.1811266,110420.0,110410.0,1.38649117]
[1748364534747,0.19018276,110420.0,110410.0,1.39554815]
[1748364534972,0.02716759,110420.0,110410.0,1.96169863]
[1748364535107,0.22640668,110420.0,110410.0,1.96169863]
[1748364535313,0.21735101,110420.0,110410.0,1.95264206]
[1748364535524,0.21735101,110420.0,110410.0,1.41500456]
[1748364536619,0.21735101,110420.0,110410.0,1.42406121]
[1748364537312,0.21735101,110420.0,110410.0,1.40594782]
[1748364537541,0.19923909,110420.0,110410.0,1.396931]
[1748364537736,0.19923909,110420.0,110410.0,1.40598782]
[1748364538020,0.19018293,110420.0,110410.0,0.50415395]
[1748364538287,0.19018293,110420.0,110410.0,0.99693117]
[1748364538482,0.19018293,110420.0,110410.0,1.39693101]
[1748364538718,0.19018293,110420.0,110410.0,1.39693109]
[1748364539033,0.19018293,110420.0,110410.0,1.40598791]
[1748364539174,0.01811175,110420.0,110410.0,0.95594399]
[1748364539371,0.04527958,110420.0,110410.0,0.95594399]
[1748364539609,0.04527958,110420.0,110410.0,1.35594399]
[1748364539811,0.04527958,110420.0,110410.0,1.41744399]
[1748364540213,0.04528023,110420.0,110410.0,1.41744399]
[1748364540453,0.04528023,110420.0,110410.0,1.4083875]
[1748364540454,0.22640733,110420.0,110410.0,1.4083875]
[1748364540633,0.22640733,110420.0,110410.0,1.41744415]
[1748364541109,0.04528073,110420.0,110410.0,1.42650072]
[1748364543020,0.21735141,110420.0,110410.0,1.41744415]
[1748364543504,0.20829533,110420.0,110410.0,1.39933076]
[1748364543693,0.20829533,110420.0,110410.0,1.39933068]
[1748364543877,0.02716873,110420.0,110410.0,1.39933068]
[1748364544144,0.02716775,110420.0,110410.0,1.40838725]
[1748364544404,0.01811159,110420.0,110410.0,1.40838725]
[1748364544653,0.03622391,110420.0,110410.0,1.40838733]
[1748364544888,0.03622391,110420.0,110410.0,1.06838733]
[1748364545111,0.03622383,110420.0,110410.0,1.0774439]
[1748364545324,0.02716775,110420.0,110410.0,1.0774439]
[1748364545819,0.01811159,110420.0,110410.0,1.0774439]
[1748364546029,0.0181115,110420.0,110410.0,1.7966639]
[1748364546257,0.0271675,110420.0,110410.0,1.7604659]
[1748364546517,0.02716545,110430.0,110420.0,0.26879443]
[1748364546741,0.21733116,110430.0,110420.0,0.35079263]
[1748364546952,0.20827623,110430.0,110420.0,0.36079271]
[1748364547184,0.20827623,110430.0,110420.0,0.36984863]
[1748364547421,0.21866557,110440.0,110430.0,0.0618]
[1748364547665,0.55879901,110440.0,110430.0,0.44669395]
[1748364548819,0.55032723,110440.0,110430.0,0.44669395]
[1748364549064,0.55879856,110440.0,110430.0,0.44669395]
[1748364549490,0.55032723,110440.0,110430.0,0.44669395]
[1748364549718,0.55879825,110440.0,110430.0,0.44669395]
[1748364549948,0.55979825,110440.0,110430.0,0.44669395]
[1748364551059,1.09802147,110440.0,110430.0,0.09105395]
[1748364551506,1.10649298,110440.0,110430.0,0.09105395]
[1748364551732,0.75802147,110440.0,110430.0,0.09105395]
[1748364551944,0.76649279,110440.0,110430.0,0.09105395]
[1748364552399,0.21132723,110440.0,110430.0,0.09105395]
[1748364552624,0.21132723,110440.0,110430.0,0.12235395]
[1748364552874,0.21979854,110440.0,110430.0,0.15395395]
[1748364553139,0.21132723,110440.0,110430.0,0.15395395]
[1748364555601,0.75802147,110440.0,110430.0,0.12235395]
[1748364555819,0.75802147,110440.0,110430.0,0.09105395]
[1748364557416,0.19018276,110420.0,110410.0,0.0617]
[1748364557617,0.19018276,110420.0,110410.0,0.44515395]
[1748364557834,0.19018276,110420.0,110410.0,0.84515395]
[1748364558252,0.19018276,110420.0,110410.0,0.84511395]
[1748364558758,0.19018276,110420.0,110410.0,0.55475395]
[1748364558983,0.19018276,110420.0,110410.0,0.84703395]
[1748364559399,0.19018276,110420.0,110410.0,0.84691395]
[1748364559624,0.19018276,110420.0,110410.0,0.81811395]
[1748364559850,0.19018276,110420.0,110410.0,0.84761395]
[1748364563182,0.19018276,110420.0,110410.0,1.02875696]
[1748364563608,0.19018276,110420.0,110410.0,1.03781411]
[1748364563871,0.19018276,110420.0,110410.0,1.05687101]
[1748364563872,0.19923884,110420.0,110410.0,1.05687101]
[1748364564090,0.19923884,110420.0,110410.0,1.04781411]
[1748364564540,0.01811224,110420.0,110410.0,1.07498497]
[1748364564720,0.20829508,110420.0,110410.0,1.07498497]
[1748364564979,0.199239,110420.0,110410.0,0.85761395]
[1748364565210,0.199239,110420.0,110410.0,1.04781411]
[1748364565716,0.19018284,110420.0,110410.0,0.75565411]
[1748364565937,0.1811266,110420.0,110410.0,1.04737411]
[1748364566143,0.1811266,110420.0,110410.0,0.85717395]
[1748364566369,0.1811266,110420.0,110410.0,1.04737411]
[1748364567727,0.1811266,110420.0,110410.0,1.04705411]
[1748364568635,0.1811266,110420.0,110410.0,0.85685395]
[1748364568870,0.1811266,110420.0,110410.0,0.84669395]
[1748364569990,0.1811266,110420.0,110410.0,0.41579395]
[1748364570487,0.1811266,110420.0,110410.0,0.12455395]
[1748364570716,0.1811266,110420.0,110410.0,0.41591395]
[1748364570931,0.1811266,110420.0,110410.0,0.81591395]
[1748364573086,0.1811266,110420.0,110410.0,0.84791395]
[1748364575246,0.5211266,110420.0,110410.0,0.81591395]
[1748364575481,0.5211266,110420.0,110410.0,0.49505395]
[1748364575691,0.5211266,110420.0,110410.0,0.81895395]
[1748364576113,0.5211266,110420.0,110410.0,0.85095395]
[1748364578293,0.5211266,110420.0,110410.0,0.36424774]
[1748364579140,0.5211266,110420.0,110410.0,0.76424774]
[1748364580477,1.09952084,110420.0,110410.0,0.29922774]
[1748364580714,0.19019999,110410.0,110400.0,0.0638]
[1748364580926,0.19019999,110410.0,110400.0,0.76300431]
[1748364581808,0.19019999,110410.0,110400.0,0.47216431]
[1748364582100,0.19019999,110410.0,110400.0,0.76284431]
[1748364582783,0.19019999,110410.0,110400.0,0.47416431]
[1748364583001,0.19019999,110410.0,110400.0,0.76472431]
[1748364583222,0.19019999,110410.0,110400.0,0.76672431]
[1748364583449,0.19925689,110410.0,110400.0,1.04963125]
[1748364583863,0.19925689,110410.0,110400.0,1.38963125]
[1748364584077,0.18114301,110410.0,110400.0,1.38057337]
[1748364584735,0.18114301,110410.0,110400.0,1.19941395]
[1748364584951,0.18114301,110410.0,110400.0,0.90885395]
[1748364585164,0.18114301,110410.0,110400.0,1.19905395]
[1748364585373,0.18114301,110410.0,110400.0,1.38021337]
[1748364585830,0.18114301,110410.0,110400.0,1.38927134]
[1748364586039,0.21244301,110410.0,110400.0,0.09505395]
[1748364586276,0.79183725,110410.0,110400.0,0.004]
[1748364586493,0.79183725,110410.0,110400.0,0.29424]
[1748364586694,0.75913725,110410.0,110400.0,0.2942]
[1748364586893,0.74213725,110410.0,110400.0,0.2942]
[1748364587096,0.74213725,110410.0,110400.0,0.2902]
[1748364587304,0.74213725,110410.0,110400.0,0.2912]
[1748364587305,0.16414301,110410.0,110400.0,0.2912]
[1748364587518,0.16414301,110410.0,110400.0,0.2922]
[1748364587937,0.19664301,110410.0,110400.0,0.2922]
[1748364588148,0.19664301,110410.0,110400.0,0.002]
[1748364588377,0.19664301,110410.0,110400.0,0.29208]
[1748364588576,0.77423725,110410.0,110400.0,0.002]
[1748364588799,0.77423725,110410.0,110400.0,0.29204]
[1748364589298,0.77423725,110410.0,110400.0,0.002]
[1748364589534,0.22754301,110410.0,110400.0,0.002]
[1748364589853,0.77423725,110410.0,110400.0,0.002]
[1748364590097,0.74333725,110410.0,110400.0,0.002]
[1748364591044,0.16414301,110410.0,110400.0,0.002]
[1748364591288,0.16414301,110410.0,110400.0,0.32282]
[1748364592600,0.16414301,110410.0,110400.0,0.35312]
[1748364593040,0.16414301,110410.0,110400.0,0.0634]
[1748364593260,0.16414301,110410.0,110400.0,0.35316]
[1748364593730,0.16414301,110410.0,110400.0,0.53431942]
[1748364593952,0.15619999,110410.0,110400.0,0.63537337]
[1748364594176,0.15619999,110410.0,110400.0,0.64443134]
[1748364594393,0.15387999,110410.0,110400.0,0.46327192]
[1748364594603,0.15387999,110410.0,110400.0,0.66254694]
[1748364594841,0.00905674,110410.0,110400.0,0.65348922]
[1748364595073,0.20831322,110410.0,110400.0,1.06254702]
[1748364595306,0.20831322,110410.0,110400.0,1.08066238]
[1748364595530,0.03622727,110410.0,110400.0,1.08066163]
[1748364595738,0.01811323,110410.0,110400.0,1.08066163]
[1748364595957,0.02717013,110410.0,110400.0,1.07066163]
[1748364596209,0.01811323,110410.0,110400.0,1.41066163]
[1748364596443,0.21737037,110410.0,110400.0,1.41066163]
[1748364597078,0.21737037,110410.0,110400.0,1.40160424]
[1748364597291,0.02717021,110410.0,110400.0,1.41066163]
[1748364597717,0.03622727,110410.0,110400.0,1.41066163]
[1748364597933,0.21737028,110410.0,110400.0,1.40160433]
[1748364598576,0.21737028,110410.0,110400.0,1.46160433]
[1748364599436,0.21737028,110410.0,110400.0,1.4706618]
[1748364599642,0.03622727,110410.0,110400.0,1.4706618]
[1748364599874,0.03622727,110410.0,110400.0,1.47066131]
[1748364600311,0.22642743,110410.0,110400.0,1.47066131]
[1748364600973,0.02717021,110410.0,110400.0,1.47066131]
[1748364601211,0.00905698,110410.0,110400.0,1.47066131]
[1748364601886,0.1811266,110420.0,110410.0,0.25584301]
[1748364602105,0.1811266,110420.0,110410.0,0.35595411]
[1748364602558,0.1811266,110420.0,110410.0,0.16575395]
[1748364603433,0.1821266,110420.0,110410.0,0.16575395]
[1748364603644,0.1831266,110420.0,110410.0,0.16575395]
[1748364603911,0.19019999,110410.0,110400.0,0.4747]
[1748364604128,0.19019999,110410.0,110400.0,0.85487395]
[1748364604339,0.19925689,110410.0,110400.0,0.85487395]
[1748364604568,0.19925689,110410.0,110400.0,1.25487395]
[1748364604779,0.19019999,110410.0,110400.0,1.25487395]
[1748364605457,0.19019999,110410.0,110400.0,1.43703337]
[1748364605664,0.19019999,110410.0,110400.0,1.44709117]
[1748364605895,0.19019999,110410.0,110400.0,1.45614889]
[1748364606105,0.19019999,110410.0,110400.0,1.44709117]
[1748364606545,0.18114301,110410.0,110400.0,1.44709117]
[1748364607026,0.18114301,110410.0,110400.0,1.45614889]
[1748364607455,0.18114301,110410.0,110400.0,1.44709134]
[1748364607684,0.18114301,110410.0,110400.0,1.45614922]
[1748364608180,0.18114301,110410.0,110400.0,1.44673134]
[1748364608443,0.16414301,110410.0,110400.0,1.44673134]
[1748364608658,0.16414301,110410.0,110400.0,1.45578922]
[1748364608874,0.16414301,110410.0,110400.0,1.25651395]
[1748364609524,0.16414301,110410.0,110400.0,1.44673134]
[1748364609954,0.16414301,110410.0,110400.0,1.25651395]
[1748364610158,0.16414301,110410.0,110400.0,1.43767337]
[1748364610370,0.16414301,110410.0,110400.0,1.25651395]
[1748364610851,0.16414301,110410.0,110400.0,1.19157395]
[1748364611082,0.16414301,110410.0,110400.0,1.22427395]
[1748364611318,0.16414301,110410.0,110400.0,1.25487395]
[1748364611570,0.16414301,110410.0,110400.0,0.84149395]
[1748364611799,0.16414301,110410.0,110400.0,0.75044]
[1748364612062,0.16414301,110410.0,110400.0,1.09044]
[1748364614287,0.16414301,110410.0,110400.0,0.462]
[1748364614510,0.16414301,110410.0,110400.0,1.0902]
[1748364615467,0.14714301,110410.0,110400.0,1.0902]
[1748364617482,0.14714301,110410.0,110400.0,1.1229]
[1748364618181,0.14714301,110410.0,110400.0,0.8661]
[1748364618397,0.14714301,110410.0,110400.0,1.1539]
[1748364619003,0.14714301,110410.0,110400.0,1.43611337]
[1748364619194,0.14714301,110410.0,110400.0,1.25495395]
[1748364620199,0.14714301,110410.0,110400.0,1.44517134]